Cogmind - Beta 15 @@@ ROGUE MODE // 2025.06.08 @ 11:33:00 Player: Cracklepappy Result: Self-destructed Performance ------------- Evolutions (5) 2500 Regions Visited (8) 1600 Robots Destroyed (89) 445 Value Destroyed (3987) 3987 Prototype IDs (36) 720 Alien Tech Used (0) 0 Bonus (2787) 2787 TOTAL SCORE: 12039 Bonus ------- High Alert Combat Kills 788 Follower Combat Kills 374 Entered Garrisons 400 Used RIF Installer 500 Registered with UFD 300 Met Optimus in HQ 500 Friendly Fire -75 Cogmind --------- Core Integrity 32/1000 Matter 300/300 Energy 100/100 System Corruption 49% Temperature Cool (0) Movement Core (100) Ox1 Location -5/Garrison Parts ------- > --- POWER (1) -------- (None) > --- PROPULSION (8) --- (None) > --- UTILITY (6) ------ Relay Coupler [Swarmer] (26) Relay Coupler [Swarmer] (32) > --- WEAPON (2) ------- Companion Sword > --- INVENTORY (5) ---- Nova Cannon Improved Remote Datajack Multitool Peak State ------------ > --- POWER ------------ Micro Fission Core > --- PROPULSION ------- Improved Treads Advanced Heavy Treads Carbon-fiber Leg Heavy Armored Exoskeleton > --- UTILITY ---------- Gravity Neutralizer Advanced Melee Analysis Suite Advanced Melee Analysis Suite Advanced Melee Analysis Suite Core Analyzer Advanced Reaction Control System > --- WEAPON ----------- Improved Remote Datajack Companion Sword > --- INVENTORY -------- Relay Coupler [NC] Nova Cannon Missile Launcher Multitool [Rating: 104] Favorites ----------- Power Ion Engine Engine Ion Engine Power Core Micro Fission Core Reactor Micro Antimatter Reactor Propulsion Light Treads Treads Light Treads Leg Armored Leg Wheel Armored Huge Wheel Hover Unit Linear Gravjet Flight Unit VTOL Module Utility Huge Storage Unit Device Improved Cooling System Storage Huge Storage Unit Processor Advanced Melee Analysis Suite Hackware Relay Coupler [Grunt] Protection Light Armor Plating Weapon Beam Cannon Energy Gun EM Pulse Gun Energy Cannon Beam Cannon Ballistic Gun Autogun Launcher Missile Launcher Special Weapon Mining Laser Impact Weapon Heavy Flail Slashing Weapon Companion Sword Piercing Weapon Heavy Pick Special Melee Weapon Datajack Build | -11 -10 -10 -8 -8 -6 -6 -5 -5 ------- Run | Yrd Mat Sub Rec Scr Fac Gar Fac Gar Slots Evolved 10 | . . . . . 8 . 2 . Power . | . . . . . . . . . Propulsion 6 | . . . . . 4 . 2 . Utility 4 | . . . . . 4 . . . Weapon . | . . . . . . . . . Parts Attached 101 | 7 10 8 7 5 13 22 15 14 Power 10 | 1 . 1 . . 1 6 1 . Engine 7 | 1 . 1 . . 1 4 . . Core 2 | . . . . . . 1 1 . Reactor 1 | . . . . . . 1 . . Propulsion 33 | 2 . 2 3 1 5 9 5 6 Treads 17 | 2 . 2 3 . 2 6 1 1 Leg 13 | . . . . . 3 2 3 5 Wheel 1 | . . . . 1 . . . . Hover 1 | . . . . . . . 1 . Flight 1 | . . . . . . 1 . . Utility 38 | 2 3 3 1 1 7 6 8 7 Device 12 | 1 . 2 . 1 2 5 1 . Storage 3 | 1 2 . . . . . . . Processor 10 | . . . . . 3 . 5 2 Hackware 9 | . . . . . 2 1 1 5 Protection 4 | . 1 1 1 . . . 1 . Artifact . | . . . . . . . . . Weapon 20 | 2 7 2 3 3 . 1 1 1 Energy Gun 2 | 2 . . . . . . . . Energy Cannon 5 | . 4 1 . . . . . . Ballistic Gun 4 | . 2 1 1 . . . . . Ballistic Cannon . | . . . . . . . . . Launcher 1 | . . . . . . . . 1 Special Weapon 2 | . 1 . . . . . 1 . Impact Weapon 1 | . . . 1 . . . . . Slashing Weapon 3 | . . . 1 2 . . . . Piercing Weapon 1 | . . . . 1 . . . . Special Melee Weapon 1 | . . . . . . 1 . . Unidentified Prototypes 2 | . . . . 1 . 1 . . Corrupted Parts 1 | . . . . . . . . 1 System Corruption 8 | . . . . . . . . 8 Parts Lost 39 | . . 5 1 . . 9 2 22 Power 3 | . . 1 . . . 1 . 1 Propulsion 16 | . . 2 . . . 2 2 10 Utility 18 | . . 2 1 . . 5 . 10 Weapon 2 | . . . . . . 1 . 1 Highest Loss Streak 12 | . . 3 1 . . 3 1 12 To Critical Strikes 1 | . . . . . . . . 1 Average Backups 18 | 4 17 23 23 21 6 5 4 4 Power . | . 1 1 . . . . . . Propulsion 3 | 2 5 5 4 3 . . . . Utility 4 | . 3 6 6 6 3 2 1 . Weapon 7 | 1 6 10 11 9 1 1 2 1 Tool/Special . | . . . . . . . . . Unused Backups 37 | . 15 3 3 10 2 1 1 2 Power 2 | . 1 . 1 . . . . . Propulsion 9 | . 6 1 1 1 . . . . Utility 13 | . 5 1 . 3 2 1 1 . Weapon 12 | . 3 1 1 6 . . . 1 Tool/Special 1 | . . . . . . . . 1 Average Slot Usage (%) 87 | . 100 99 95 78 81 79 65 48 Engine 11 | . 14 14 14 14 5 2 . . Treads 17 | . 28 28 28 2 18 8 7 5 Leg 2 | . . . . . 8 14 8 9 Wheel 3 | . . . . 12 . . . . Device 5 | . 1 . . 12 15 18 7 . Storage 11 | . 14 14 14 14 . . . . Processor 2 | . . . . . 14 12 20 9 Hackware 1 | . . . . . 9 10 2 12 Protection 6 | . 12 13 9 . . . 2 . Energy Cannon 7 | . 17 18 . . . . . . Ballistic Gun 6 | . 5 9 25 . . . . . Slashing Weapon 5 | . . . . 15 5 5 5 5 Piercing Weapon 1 | . . . . 4 . . . . Peak Build Rating 104 | 9 11 14 17 28 69 91 104 97 Average Rating 27 | 5 9 11 16 25 60 73 95 40 On Entrance 36 | . 9 9 14 15 26 69 90 92 Naked Turns . | . . . . . . . . . Heaviest Build 100 | 15 94 100 100 92 12 16 16 9 Greatest Support 105 | 40 40 40 42 40 29 15 105 15 Greatest Overweight (x) 4 | . 2 2 2 3 . 1 4 2 Average Overweight (x) 1 | . . 2 2 2 . . . 1 Largest Inventory Capacity 25 | 8 25 25 25 25 25 5 5 5 Average Capacity 19 | 7 19 25 25 25 8 5 5 5 Most Carried 25 | 8 25 25 25 25 19 5 5 5 Average Carried 18 | 4 17 24 24 22 6 4 4 4 Final Capacity 25 | 8 25 25 25 25 5 5 5 5 Final Carried 25 | 8 25 25 25 21 5 5 5 3 Class Distribution -------------------- 84% | Mutant 11% | Scavenger-Mutant Dominant Class ---------------- Mutant | -10/Materials Mutant | -10/Subcaves Mutant | -8/Recycling Mutant | -8/Scraptown Hacker-Mutant | -6/Factory Scavenger-Mutant | -6/Garrison Mutant | -5/Factory Bothacker-Mutant | -5/Garrison Resources | -11 -10 -10 -8 -8 -6 -6 -5 -5 ----------- Run | Yrd Mat Sub Rec Scr Fac Gar Fac Gar Matter Collected 2234 | 253 441 113 246 70 159 546 146 260 Remotely . | . . . . . . . . . Salvage Created 5816 | 151 802 251 378 . 59 1950 2071 154 Parts 234 | 11 40 18 16 . 5 56 83 5 Haulers Intercepted 4 | . 2 . . . . . 2 . Recyclers Shooed 6 | 1 2 . 3 . . . . . Parts Field Recycled . | . . . . . . . . . Retrieved Matter . | . . . . . . . . . Parts Self-Destructed 19 | . . 19 . . . . . . Prevented . | . . . . . . . . . Kills | -11 -10 -10 -8 -8 -6 -6 -5 -5 ------- Run | Yrd Mat Sub Rec Scr Fac Gar Fac Gar Combat Hostiles Destroyed 62 | . 9 6 3 . . 18 24 2 Melee 44 | . . . . . . 18 24 2 Guns 8 | . 5 . 3 . . . . . Cannons 10 | . 4 6 . . . . . . Classes Destroyed 16 | 3 4 3 1 . 1 1 2 1 Worker 4 | 1 2 . . . . . 1 . Builder 3 | . 1 . . . . . 2 . Tunneler 4 | 3 . . . . 1 . . . Hauler 4 | . 2 . . . . . 2 . Recycler 10 | 1 4 . 3 . . . 2 . Mechanic 1 | . . . . . 1 . . . Watcher 1 | . 1 . . . . . . . Swarmer 6 | . . 1 . . . 5 . . Grunt 35 | . 9 . . . . 9 17 . Brawler 2 | . . . . . . . . 2 Duelist 1 | . . . . . . 1 . . Sentry 10 | . . . 3 . . 3 4 . Hunter 1 | . . . . . . . 1 . Programmer 2 | . . . . . . . 2 . Artisan 1 | . . 1 . . . . . . Subdweller 5 | . . 5 . . . . . . Best Kill Streak 8 | 3 3 1 3 . 1 3 8 1 Combat Bots Only 8 | . 2 1 1 . . 3 8 1 Max Kills in Single Turn 1 | 1 1 1 1 . 1 1 1 1 Gunslinging . | . . . . . . . . . Exploded . | . . . . . . . . . Melee 1 | . . . . . . 1 1 1 Uniques/NPCs Destroyed . | . . . . . . . . . Combat | -11 -10 -10 -8 -8 -6 -6 -5 -5 -------- Run | Yrd Mat Sub Rec Scr Fac Gar Fac Gar Hostile Shots Fired 583 | . 31 46 28 . . 207 159 112 Missed 160 | . 6 12 5 . . 52 59 26 Hits 423 | . 25 34 23 . . 155 100 86 Melee 26 | . . . . . . 5 . 21 Projectile 397 | . 25 34 23 . . 150 100 65 AOE 1 | . . . . . . . . 1 Critical Strikes 23 | . . 1 1 . . 7 6 8 Damage Taken 8226 | . 348 600 334 . . 2606 2193 2145 Core 1533 | . 62 74 31 . . 398 271 697 Absorbed by Shields 25 | . . . . . . 25 . . Redirected to Shielding 13 | . . . . . . . 13 . Core Remaining (%) 62 | 100 . . . 33 . 53 . . Volleys Fired 135 | 9 41 46 22 . . . 8 9 Largest 2 | 2 2 2 2 . . . 1 1 Hottest 120 | 80 120 120 46 . . . 7 36 Shots Fired 219 | 18 75 65 44 . . . 8 9 Gun 100 | 18 32 6 44 . . . . . Cannon 95 | . 36 59 . . . . . . Launcher 2 | . . . . . . . . 2 Special 22 | . 7 . . . . . 8 7 Kinetic 64 | . 14 6 44 . . . . . Thermal 102 | . 43 59 . . . . . . Explosive 2 | . . . . . . . . 2 Electromagnetic 36 | 18 18 . . . . . . . Robot Hit Streak 37 | 7 11 13 22 . . . 30 37 Robot Miss Streak 3 | 1 2 3 1 . . . . 1 Penetration Max . | . . . . . . . . . Secondary Targets . | . . . . . . . . . Shots Hit Robots 380 | 12 47 28 36 . 2 115 108 32 Core Hits 133 | 6 22 9 10 . 1 39 36 10 Critical Kills . | . . . . . . . . . Critical Parts Destroyed . | . . . . . . . . . Critical Strikes 3 | 1 . . . . . . 2 . Corrupt 1 | 1 . . . . . . . . Melee Attacks 278 | . . . . . 2 141 101 34 Impact . | . . . . . . . . . Slashing 278 | . . . . . 2 141 101 34 Piercing . | . . . . . . . . . Sneak Attacks 13 | . . . . . 2 1 9 1 Combat Hostiles 4 | . . . . . . 1 2 1 Follow-up Attacks 7 | . . . . . . 7 . . Damage Inflicted 15634 | 211 805 512 579 . 167 6911 5321 1128 Guns 1127 | 165 351 52 559 . . . . . Cannons 845 | . 385 460 . . . . . . Explosions 310 | 46 . . . . . . . 264 Melee 13263 | . . . . . 167 6911 5321 864 Ramming 65 | . 45 . 20 . . . . . Kinetic 776 | . 165 52 559 . . . . . Thermal 915 | 46 409 460 . . . . . . Explosive 264 | . . . . . . . . 264 Electromagnetic 351 | 165 186 . . . . . . . Impact . | . . . . . . . . . Slashing 13263 | . . . . . 167 6911 5321 864 Piercing . | . . . . . . . . . Highest Corruption 48 | . . . 2 . . 1 2 48 Average Corruption 5 | . . . 1 . . 1 1 29 Corruption Purged . | . . . . . . . . . Corruption Blocked . | . . . . . . . . . Effects 41 | . . . 15 . . 3 6 17 Message Errors 18 | . . . 5 . . 1 3 9 Matter Fused 4 | . . . 3 . . . . 1 Heat Flow Errors 4 | . . . 1 . . . 2 1 Energy Discharges 7 | . . . 2 . . 2 1 2 Parts Fused 1 | . . . . . . . . 1 Data Loss (minor) 1 | . . . . . . . . 1 Data Loss (major) 2 | . . . 2 . . . . . Misfires 1 | . . . 1 . . . . . Alerts 1 | . . . . . . . . 1 Misdirections 1 | . . . . . . . . 1 Weapon Failures 1 | . . . 1 . . . . . Overload Shots . | . . . . . . . . . Overflow Damage 633 | . . 25 . . 41 275 292 . Projectiles 25 | . . 25 . . . . . . Explosions . | . . . . . . . . . Melee 608 | . . . . . 41 275 292 . Knockbacks . | . . . . . . . . . Impact . | . . . . . . . . . Kinetic . | . . . . . . . . . Secondary . | . . . . . . . . . Self-Inflicted Damage 21 | . . . . . . . . 21 Shots 1 | . . . . . . . . 1 Rammed 11 | . 6 . 5 . . . . . Targets Rammed 13 | . 8 . 5 . . . . . Kicked . | . . . . . . . . . Crushed 2 | . 2 . . . . . . . Highest Temperature 359 | 72 234 359 270 . . 9 176 184 Average Temperature 63 | 30 73 52 61 . . 5 83 104 Received Heat Transfer 2237 | . 171 409 144 . . 949 537 27 Effects 1 | . . 1 . . . . . . Energy Bleed 1 | . . 1 . . . . . . Siege Activations . | . . . . . . . . . Martial Activations . | . . . . . . . . . Shielding Activations . | . . . . . . . . . Robots Disrupted 4 | . . . . . . 2 1 1 Combat Hostiles 4 | . . . . . . 2 1 1 Robots Corrupted . | . . . . . . . . . Combat Hostiles . | . . . . . . . . . Parts Fried . | . . . . . . . . . Impact Corruptions . | . . . . . . . . . Robots Melted . | . . . . . . . . . Combat Hostiles . | . . . . . . . . . Parts Melted 4 | . 1 2 . . . . 1 . Heat Transferred 1802 | 50 864 888 . . . . . . Parts Sabotaged . | . . . . . . . . . Parts Stolen . | . . . . . . . . . Parts Stripped . | . . . . . . . . . Power Chain Reactions 1 | 1 . . . . . . . . Alert | -11 -10 -10 -8 -8 -6 -6 -5 -5 ------- Run | Yrd Mat Sub Rec Scr Fac Gar Fac Gar Maximum Alert Level 3 | . . . . . . 3 3 3 Low Security (%) 68 | 100 100 . 100 . 100 20 . . Level 1 1 | . . . . . . 10 . . Level 2 15 | . . . . . . 17 60 90 Level 3 13 | . . . . . . 50 39 9 Level 4 . | . . . . . . . . . Level 5 . | . . . . . . . . . High Security . | . . . . . . . . . Max Security . | . . . . . . . . . Peak Influence 997 | 10 75 . 66 . 5 997 968 753 Initial 648 | . . . . . . . 522 648 Average 222 | 1 19 . 14 . . 574 645 670 Influence Increases 2961 | 25 342 95 207 . 10 1147 836 299 Destroy 0b10 Robot/C 1380 | . 180 20 60 . . 560 480 80 Destroy 0b10 Robot/NC 185 | 25 50 . 15 . 10 50 35 . Destroy Leader 170 | . 36 . . . . 40 94 . Allied During Kill 109 | . . . . . . 95 . 14 Successful Hack 35 | . 11 . 12 . . 4 . 8 Select Force Hacks 150 | . 30 . 120 . . . . . Disable Machine 30 | . . . . . . 15 . 15 Anti-Garrison Action 300 | . . . . . . 200 . 100 Destroy Structure 137 | . 5 . . . . 93 2 37 Partial Spotted 60 | . . . . . . 30 30 . Lose Combat Pursuer 405 | . 30 75 . . . 60 195 45 Influence Decreases 2334 | 25 309 128 193 14 10 150 907 598 Entered New Map 784 | . . 17 . 14 . . 475 278 Time Decay 1008 | 25 309 79 193 . 10 . 392 . Lost Part 362 | . . 32 . . . 90 20 220 Lost Ally 180 | . . . . . . 60 20 100 Squads Dispatched 3 | . 1 . . . . . 2 . Investigation 1 | . 1 . . . . . . . Extermination 1 | . . . . . . . 1 . Reinforcement . | . . . . . . . . . Assault 1 | . . . . . . . 1 . Garrison . | . . . . . . . . . Intercept . | . . . . . . . . . Searches Triggered . | . . . . . . . . . Construction Impeded . | . . . . . . . . . Haulers Reinforced . | . . . . . . . . . Active Scanning Responses . | . . . . . . . . . Cargo Convoy Interrupts . | . . . . . . . . . Stealth | -11 -10 -10 -8 -8 -6 -6 -5 -5 --------- Run | Yrd Mat Sub Rec Scr Fac Gar Fac Gar Distress Signals 2 | . 1 . . . . . 1 . Communications Jammed . | . . . . . . . . . Distress Signals . | . . . . . . . . . Times Spotted 110 | . 15 7 3 . 3 32 34 16 Peak Tracking Total 14 | . 3 3 1 . 3 5 6 14 Tactical Retreats 14 | . 2 2 . . . 3 6 1 Traps | -11 -10 -10 -8 -8 -6 -6 -5 -5 ------- Run | Yrd Mat Sub Rec Scr Fac Gar Fac Gar Traps Triggered 11 | . 1 1 . . 1 7 . 1 Indirectly . | . . . . . . . . . Trap Hack Attempts . | . . . . . . . . . Triggered . | . . . . . . . . . Disarmed . | . . . . . . . . . Reprogrammed . | . . . . . . . . . Reused . | . . . . . . . . . Traps Extracted . | . . . . . . . . . Installed . | . . . . . . . . . Triggered . | . . . . . . . . . Machines | -11 -10 -10 -8 -8 -6 -6 -5 -5 ---------- Run | Yrd Mat Sub Rec Scr Fac Gar Fac Gar Machines Disabled 7 | . . 1 . . . 4 . 2 Max in Single Turn 1 | . . 1 . . . 1 . 1 Garrison Relay 4 | . . . . . . 3 . 1 Machines Repaired . | . . . . . . . . . Machines Dismantled . | . . . . . . . . . Machines Sabotaged . | . . . . . . . . . Overloaded Fab Kills . | . . . . . . . . . Hacking | -11 -10 -10 -8 -8 -6 -6 -5 -5 --------- Run | Yrd Mat Sub Rec Scr Fac Gar Fac Gar Machines Accessed 38 | . 7 2 10 7 2 4 4 2 Terminals 20 | . 6 . 6 . 1 4 1 2 Fabricators 2 | . . . . . . . 2 . Repair Stations . | . . . . . . . . . Recycling Units 5 | . 1 . 4 . . . . . Scanalyzers . | . . . . . . . . . Garrison Access 2 | . . . . . 1 . 1 . Total Hacks 104 | . 14 5 22 39 3 9 6 6 Successful 64 | . 6 5 7 39 2 3 1 1 Failed 40 | . 8 . 15 . 1 6 5 5 Catastrophic 12 | . 2 . 4 . . 2 2 2 Database Lockouts . | . . . . . . . . . Manual 29 | . 9 . 17 . . 3 . . Terminals 48 | . 13 . 16 . 2 9 2 6 Fabricators 3 | . . . . . . . 3 . Repair Stations . | . . . . . . . . . Recycling Units 7 | . 1 . 6 . . . . . Scanalyzers . | . . . . . . . . . Garrison Access 2 | . . . . . 1 . 1 . Terminal Hacks 57 | . 5 5 3 39 1 3 . 1 Record 35 | . . 4 . 31 . . . . Part Schematic 1 | . . . 1 . . . . . Robot Schematic 1 | . 1 . . . . . . . Robot Analysis 6 | . . . . 6 . . . . Prototype ID Bank 3 | . 1 . 1 . 1 . . . Open Door 3 | . . . . 1 . 1 . 1 Emergency Access Points 2 | . 1 . . . . 1 . . Locate Traps 2 | . 2 . . . . . . . Zone Layout 1 | . . . 1 . . . . . Garrison Registry 1 | . . . . . . 1 . . Proto ID Catalog 2 | . . 1 . 1 . . . . Fabricator Hacks . | . . . . . . . . . Repair Station Hacks . | . . . . . . . . . Recycling Unit Hacks . | . . . . . . . . . Scanalyzer . | . . . . . . . . . Garrison Access Hacks 2 | . . . . . 1 . 1 . Unlock Access 2 | . . . . . 1 . 1 . Unauthorized Hacks 5 | . 1 . 4 . . . . . Terminals . | . . . . . . . . . Fabricators . | . . . . . . . . . Repair Stations . | . . . . . . . . . Recycling Units 5 | . 1 . 4 . . . . . Tunnel 5 | . 1 . 4 . . . . . Scanalyzers . | . . . . . . . . . Garrison Access . | . . . . . . . . . Data Cores Recovered . | . . . . . . . . . Used . | . . . . . . . . . Hacking Detections 22 | . 6 . 6 . 2 3 3 2 Full Trace Events 6 | . . . 4 . . 1 . 1 Feedback Events 3 | . . . 2 . . 1 . . Corruption 3 | . . . 2 . . 1 . . Feedback Blocked . | . . . . . . . . . Robot Schematics Acquired 1 | . 1 . . . . . . . Robots Built . | . . . . . . . . . Authchips . | . . . . . . . . . Time . | . . . . . . . . . Total Robot Build Rating . | . . . . . . . . . Part Schematics Acquired 1 | . . . 1 . . . . . Parts Built . | . . . . . . . . . Authchips . | . . . . . . . . . Time . | . . . . . . . . . Total Part Build Rating . | . . . . . . . . . Parts Repaired . | . . . . . . . . . Time . | . . . . . . . . . Parts Recycled . | . . . . . . . . . Recycled Matter . | . . . . . . . . . Retrieved Matter . | . . . . . . . . . Retrieved Components . | . . . . . . . . . Parts Scanalyzed . | . . . . . . . . . Part Schematics Acquired . | . . . . . . . . . Parts Damaged . | . . . . . . . . . Bothacking | -11 -10 -10 -8 -8 -6 -6 -5 -5 ------------ Run | Yrd Mat Sub Rec Scr Fac Gar Fac Gar Used RIF Installer 1 | . . . . . . 1 . . Robots Hacked 5 | . . . . . . . 3 2 Non-combat 3 | . . . . . . . 3 . Combat 2 | . . . . . . . . 2 Robot Hacks Applied 5 | . . . . . . . 3 2 drop_inventory 1 | . . . . . . . 1 . formatsys_low 2 | . . . . . . . 2 . formatsys_high 2 | . . . . . . . . 2 Relay Couplers Released 17 | . . . . . . 12 . 5 Machine Destruction 17 | . . . . . . 12 . 5 Attached 7 | . . . . . . 1 1 5 Fabnet Peak Effective % . | . . . . . . . . . Robots Rewired 6 | . . . . . . 3 1 2 Allies Hacked . | . . . . . . . . . Hacks Repelled . | . . . . . . . . . Allies | -11 -10 -10 -8 -8 -6 -6 -5 -5 -------- Run | Yrd Mat Sub Rec Scr Fac Gar Fac Gar Total Allies 10 | . . . . . . 3 3 4 Largest Group 4 | . . . . . . 3 2 4 Highest-Rated Group 182 | . . . . . . 113 44 182 Highest-Rated Ally 51 | . . . . . . 51 41 49 Total Orders . | . . . . . . . . . Ally Attacks 48 | . . . . . . 35 . 13 Total Damage 1035 | . . . . . . 737 . 298 Kills 12 | . . . . . . 10 . 2 Allies Corrupted 1 | . . . . . . . . 1 Allies Melted . | . . . . . . . . . Intel | -11 -10 -10 -8 -8 -6 -6 -5 -5 ------- Run | Yrd Mat Sub Rec Scr Fac Gar Fac Gar Active Infowar (turns) 1453 | 43 324 . . . 100 986 . . Terrain 367 | 43 324 . . . . . . . Seismic 1076 | . . . . . 90 986 . . Decoding 156 | . . . . . 100 56 . . Robot Analysis Total 6 | . . . . 6 . . . . Derelict Logs Recovered . | . . . . . . . . . Drone Launches . | . . . . . . . . . Drone Recoveries . | . . . . . . . . . Decoded 0b10 Intel 6 | . . . . . 6 . . . Items 6 | . . . . . 6 . . . Exploration | -11 -10 -10 -8 -8 -6 -6 -5 -5 ------------- Run | Yrd Mat Sub Rec Scr Fac Gar Fac Gar Turns Passed 13546 | 153 2546 2840 1910 3499 117 1161 927 393 Spaces Moved 6860 | 69 980 846 580 2263 126 983 808 205 Core 2104 | 2 . . . . 113 983 801 205 Treads 2585 | 67 980 846 580 99 13 . . . Legs 7 | . . . . . . . 7 . Wheels 2164 | . . . . 2164 . . . . Hover . | . . . . . . . . . Flight . | . . . . . . . . . Fastest Speed 50 | 50 160 320 312 145 50 50 50 50 Average Speed 170 | 156 223 320 313 152 61 59 64 104 Slowest Speed 320 | 160 320 320 320 320 160 100 250 150 Overloaded Moves . | . . . . . . . . . Propulsion Burnouts . | . . . . . . . . . Robots Hopped . | . . . . . . . . . Potential Cave-ins . | . . . . . . . . . Cave-ins Triggered . | . . . . . . . . . Exploration Rate (%) 51 | 6 99 39 95 93 5 92 20 15 Regions Visited 8 Branch Regions 3 Pre-discovered Areas 7 | . 1 1 4 1 . . . . Known Exits Taken 2 | . . . . . 1 . 1 . Unknown Exits Taken 5 | 1 1 1 1 1 . . . . Scrap Searched 7 | . . 3 . 4 . . . . Spaces Dug 21 | . 5 6 . . . 1 1 8 Terrain Destroyed 39 | 5 5 8 . . . 1 1 19 Melee 2 | . . . . . . 1 1 . Projectile 13 | . 5 8 . . . . . . AOE 24 | 5 . . . . . . . 19 Terrain Rammed . | . . . . . . . . . Walls Destroyed . | . . . . . . . . . Machines Disabled . | . . . . . . . . . Actions | -11 -10 -10 -8 -8 -6 -6 -5 -5 --------- Run | Yrd Mat Sub Rec Scr Fac Gar Fac Gar Total 8133 | 92 1253 916 632 2318 166 1363 1069 324 Wait 429 | . 158 5 2 8 5 88 122 41 Move 6852 | 68 979 845 579 2262 125 982 807 205 Hop . | . . . . . . . . . Pick Up 83 | 8 36 8 6 15 5 3 1 1 Fast Attach 55 | 7 . . 1 5 4 14 12 12 Attach 26 | . . 5 . . 12 2 3 4 Detach 5 | . . . . 1 . . 3 1 Swap 36 | . 10 3 7 . 1 12 3 . Drop 100 | . 21 4 10 25 12 17 9 2 Fire 135 | 9 41 46 22 . . . 8 9 Melee 271 | . . . . . 2 134 101 34 Ram . | . . . . . . . . . Kick . | . . . . . . . . . Crush 13 | . 8 . 5 . . . . . Escape Stasis 101 | . . . . . . 86 . 15 Rewire 27 | . . . . 2 . 25 . . Trap . | . . . . . . . . . Miscellaneous . | . . . . . . . . . Route ------- -11/Scrapyard -10/Materials (discovered 5 exits: [*Mat x3] / [*Min] / *Sub) -10/Subcaves (discovered 3 exits: [*Mat] / *Rec / *Scr) -8/Recycling (discovered 2 exits: *Fac / *Scr) -8/Scraptown (discovered 2 exits: *Fac x2) -6/Factory -6/Garrison (discovered 3 exits: *Fac x3) -5/Factory -5/Garrison History --------- Turn | Location | Event 7 | -11/Scrapyard | Discovered new exit (range 14) 154 | -11/Scrapyard | Entered Materials 155 | -10/Materials | Met a group of wandering Federalists 312 | -10/Materials | Build established: Mutant 483 | -10/Materials | Discovered new exit (range 10) 729 | -10/Materials | Discovered new exit (range 5) 989 | -10/Materials | Discovered new exit (range 15) 1227 | -10/Materials | Discovered new exit (range 3) 2305 | -10/Materials | Discovered new exit (range 6) 2700 | -10/Materials | Entered Subcaves 2701 | -10/Subcaves | Continued accompanying wandering Federalists (1) 2701 | -10/Subcaves | Approached by a straggling Scientist 2704 | -10/Subcaves | Discovered new exit (range 15) 2986 | -10/Subcaves | Visited Clippyterm 2996 | -10/Subcaves | Learned Factory stockpile data 2996 | -10/Subcaves | Learned location of Deep Caves (-7) 3175 | -10/Subcaves | A swath of the cavern ceiling suddenly collapsed 3235 | -10/Subcaves | Scientist uncovered a shortcut to Scraptown 3704 | -10/Subcaves | Lost 3 parts (1p2u) 4052 | -10/Subcaves | Shifting Twisted Machinery released Mak. Shrapnel Gun 4062 | -10/Subcaves | Shifting Twisted Machinery released Mak. Hacking Suite 4157 | -10/Subcaves | Shifting Twisted Machinery released Mak. Leg 4194 | -10/Subcaves | Visited 4L-MR0's lab 4224 | -10/Subcaves | Found Cargo Legs 4866 | -10/Subcaves | Core integrity fell below 50% 5163 | -10/Subcaves | Build established: Scavenger-Mutant 5532 | -10/Subcaves | Discovered new exit (range 5) 5540 | -10/Subcaves | Entered Recycling 5804 | -8/Recycling | Scanned before Scraplab entrance 5930 | -8/Recycling | Build established: Mutant 6976 | -8/Recycling | Discovered new exit (range 7) 7415 | -8/Recycling | Entered Scraplab 7444 | -8/Recycling | Discovered new exit (range 2) 7450 | -8/Recycling | Entered Scraptown 7450 | -8/Scraptown | System corruption cleaned by C-Scrubber 7930 | -8/Scraptown | Discovered new exit (range 5) 8245 | -8/Scraptown | Visited CR-KLE's Repair Center 8257 | -8/Scraptown | Visited Spacefarers 8312 | -8/Scraptown | Visited Cyclists 8341 | -8/Scraptown | Visited SPCMW 8406 | -8/Scraptown | Visited Fellowship of the Rings 8805 | -8/Scraptown | Visited The Evicted 8893 | -8/Scraptown | Visited UFD Registry 8905 | -8/Scraptown | Registered with UFD as "Gunback" 8959 | -8/Scraptown | Entered Cyclist Reading Room 9078 | -8/Scraptown | Visited Abandonware Association 9111 | -8/Scraptown | Learned abandonware demo "REPAIR.EXE" 9111 | -8/Scraptown | Learned abandonware demo "ERRANTS.EXE" 9172 | -8/Scraptown | Visited Curators Association 9227 | -8/Scraptown | Visited Derelict Rescue Squad 9321 | -8/Scraptown | Visited Scrapoid Research Area 9370 | -8/Scraptown | Visited Sword Containment 9425 | -8/Scraptown | Visited Infowarlord's Domain 9455 | -8/Scraptown | Visited Science Guys 9710 | -8/Scraptown | Visited Junk Repository 9776 | -8/Scraptown | Visited Analyses Database 10230 | -8/Scraptown | Learned location of Extension (-6) 10877 | -8/Scraptown | Met Optimus 10877 | -8/Scraptown | Accepted into 0bPrime 10946 | -8/Scraptown | Discovered new exit (range 3) 10949 | -8/Scraptown | Entered Factory 10949 | -6/Factory | Evolved 8 slots: Propulsion x4, Utility x4 10950 | -6/Factory | Attached Cargo Legs, gained temporary slots: Utility x2 11063 | -6/Factory | Identified exit to Garrison 11066 | -6/Factory | Entered Garrison 11116 | -6/Garrison | Triggered checkpoint 11183 | -6/Garrison | Garrison Relay disabled 11232 | -6/Garrison | Build established: Hacker-Mutant 11255 | -6/Garrison | Installed Relay Interface Framework 11263 | -6/Garrison | Triggered checkpoint 11270 | -6/Garrison | Triggered checkpoint 11288 | -6/Garrison | Triggered checkpoint 11322 | -6/Garrison | Lost 3 parts (1p2u) 11401 | -6/Garrison | Discovered new exit (range 5) 11430 | -6/Garrison | Garrison Relay disabled 11611 | -6/Garrison | Discovered new exit (range 4) 11620 | -6/Garrison | Triggered checkpoint 11784 | -6/Garrison | Garrison Relay disabled 11913 | -6/Garrison | Discovered new exit (range 10) 12006 | -6/Garrison | Triggered checkpoint 12201 | -6/Garrison | Discovered new exit (range 36) 12201 | -6/Garrison | Discovered new exit (range 69) 12201 | -6/Garrison | Discovered new exit (range 36) 12227 | -6/Garrison | Entered Factory 12227 | -5/Factory | Evolved 2 slots: Propulsion x2 12296 | -5/Factory | Build established: Mutant 12527 | -5/Factory | First assault squad dispatched 13006 | -5/Factory | Destroyed 8 combat bots 13031 | -5/Factory | Identified exit to Garrison 13154 | -5/Factory | Entered Garrison 13154 | -5/Garrison | Accompanied by 2 allies 13187 | -5/Garrison | Triggered checkpoint 13192 | -5/Garrison | Garrison Relay disabled 13213 | -5/Garrison | System corruption reached 10% 13267 | -5/Garrison | System corruption reached 30% 13301 | -5/Garrison | Lost 12 parts (1p5n6u) 13452 | -5/Garrison | Triggered checkpoint 13522 | -5/Garrison | Core integrity fell below 50% 13544 | -5/Garrison | Core integrity fell below 20% 13547 | -5/Garrison | Self-destructed Last Messages --------------- 13525_ Penetrated by Slug. 13526_ Missile Launcher destroyed. 13526_ Penetrated by Slug. 13527_ Acquired 36 matter. 13530_ Slug penetrates Wall. 13530_ Slug penetrates H-66 Slayer. 13533_ Penetrated by Slug. 13533_ Flexi-carbon Leg destroyed. 13533_ Penetrated by Slug. 13533_ Targeting Computer destroyed. 13534_ Flexi-carbon Leg destroyed. 13535_ P-70 Sage resets X-67 Chaingunner, system corruption cleaned. 13536_ Flexi-carbon Leg destroyed. 13540_ >2VPFYRRDJBROIIPEVITOVQ1 13541_ Slug penetrates Wall. 13544_ Slug penetrates X-72 Disruptor. 13544_ Targeting Computer destroyed. 13544_ Penetrated by Slug. 13547_ The unstable cave ceiling collapses. 13547_ Relay Coupler [Grunt] destroyed. Map ----- +----------------------------------------------------+ | ????#=*###???????????????????????????????????????? | | ????# #?????????????????????????????????????????? | | ##### #######################???????????????????? | | "T"## **!! #???????????????????? | | " %/%* #???????????????????? | | ############### ######### #???????????????????? | | ??????????????# #???????# #???????????????????? | | ??????????????#####???????# #???????????????????? | | ??????????????????????????# #???????????????????? | | ??????????????????????????# #???????????????????? | | ??????????????????????????# #???????????????????? | | ??????????????????????????# #???????????????????? | | ??????????????????????????# #???????????????????? | | ??????????????????????????# #???????????????????? | | ??????????????????????????# #???????????????????? | | ??????????????????????????# #???????????????????? | | ??????????????????????????# #???????????????????? | | ??????????????????????????# #???????????????????? | | ??????????????????????????# #???????????????????? | | ??????????????????????????# #???????????????????? | | ??????????????????????????# #???????????????????? | | ??????????????????????????# #?????##????????????? | | ??????????????????????????# #### ### ##""""## | | ???????????################xp# h | | ???????? ;hx!!% !% " | | ???????? @xh%i=[ /* "%" | | ??????????????##############!# % ## #??? | | ???????????????????????????#=######## #????????? | | ???????????????????????????# [ #???? ??????? | | ???????????????????????????########??????????????? | | ?????????????????????????????????????????????????? | | ?????????????????????????????????????????????????? | | ?????????????????????????????????????????????????? | | ?????????????????????????????????????????????????? | | ?????????????????????????????????????????????????? | | ?????????????????????????????????????????????????? | | ?????????????????????????????????????????????????? | | ?????????????????????????????????????????????????? | | ?????????????????????????????????????????????????? | | ?????????????????????????????????????????????????? | | ?????????????????????????????????????????????????? | | ?????????????????????????????????????????????????? | | ?????????????????????????????????????????????????? | | ?????????????????????????????????????????????????? | | ?????????????????????????????????????????????????? | | ?????????????????????????????????????????????????? | | ?????????????????????????????????????????????????? | | ?????????????????????????????????????????????????? | | ?????????????????????????????????????????????????? | | ?????????????????????????????????????????????????? | +----------------------------------------------------+ Best States ------------- Heat Dissipation 70 Energy Generation 19 Energy Capacity 275 Matter Stores 300 Matter Capacity 300 Sight Range 16 Terrain Scan Range 16 Terrain Scan Density 10 Additional Mass Support 12 Armor Coverage 150 Utility Shielding 66 Melee Speed Boost 20 Evasion (%) 62 Targeting Accuracy 10 Melee Accuracy 32 Core Analysis 6 Recoil Reduction 2 Offensive Hacking 23 Relay Coupler Types 4 Relay Coupler Value 99 Item Schematics ----------------- Lgt. Assault Rifle | -8/Recycling | Hacked Robot Schematics ------------------ M-13 Machinist | -10/Materials | Hacked Fabricated ------------ Nothing Repaired ---------- Nothing Alien Tech Used ----------------- None Achievements -------------- None Challenges ------------ None Game ------ Seed SalvagingDynamicRipper Manual? 0 Play Time 01:19:02 Cumulative 881.4 hours Start 2025.06.08 @ 00:34:08 End 2025.06.08 @ 11:33:00 Sessions 3 Manual Loads 0 Difficulty Rogue Special Mode None Game No. 478 Rogue 478 Adventurer 0 Explorer 0 Win Type - Total 22 Types 10/3/3/0/1/1/2/2/0/0 Lore% 82 Gallery% 85 Achievement% 83 Wizard Run 0 Options --------- Layout 0 ASCII 0 Keyboard 0 Movement Numpad Keybinds 0 Fullscreen 2 Font 24/Smallcaps Map View 76x50 Zoom Use 0% Tactical HUD 1 Map Filters NONE Filters NONE Steam 1 RUN: d799547a-dc4c-432d-8b6b-5e8051c63770